[Event "Djerba Festival Blitz 2025"]
[Site "Djerba"]
[Date "2025.02.21"]
[Round "2.11"]
[White "Willems, Niels"]
[Black "Charfeddine, Khaled"]
[Result "1-0"]
[ECO "A11"]
[WhiteElo "2414"]
[BlackElo "1908"]
[PlyCount "78"]
[EventDate "2025.02.15"]
[EventType "swiss"]
[EventCountry "TUN"]
[TimeControl "180+3"]

1. c4 {[%emt 0:00:03]} Nf6 {[%emt 0:00:06]} 2. Nc3 {[%emt 0:00:01]} e6 {[%emt 0:00:04]} 3. Nf3 {[%emt 0:00:03]} c6 {[%emt 0:00:02]} 4. e3 {[%emt 0:00:03]} d5 {[%emt 0:00:02]} 5. b3 {[%emt 0:00:02]} g6 {[%emt 0:00:06]} 6. Bb2 {[%emt 0:00:05]} Bg7 {[%emt 0:00:02]} 7. Qc2 {[%emt 0:00:13]} Nbd7 {[%emt 0:00:04]} 8. Be2 {[%emt 0:00:05]} a6 {[%emt 0:00:07]} 9. O-O {[%emt 0:00:18]} O-O {[%emt 0:00:03]} 10. d4 {[%emt 0:00:17]} Re8 {[%emt 0:00:05]} 11. e4 {[%emt 0:00:03]} dxe4 {[%emt 0:00:03]} 12. Nxe4 {[%emt 0:00:02]} Nxe4 {[%emt 0:00:02]} 13. Qxe4 {[%emt 0:00:02]} Nf6 {[%emt 0:00:02]} 14. Qc2 {[%emt 0:00:08]} Qc7 {[%emt 0:00:11]} 15. Rad1 {[%emt 0:00:15]} Nd7 {[%emt 0:00:09]} 16. Rfe1 {[%emt 0:00:09]} e5 {[%emt 0:00:06]} 17. Bf1 {[%emt 0:00:03]} f6 {[%emt 0:00:15]} 18. g3 {[%emt 0:00:26]} Kh8 {[%emt 0:00:30]} 19. dxe5 {[%emt 0:00:13]} Nxe5 {[%emt 0:00:13]} 20. Nxe5 {[%emt 0:00:12]} fxe5 {[%emt 0:00:03]} 21. Bg2 {[%emt 0:00:07]} Bf5 {[%emt 0:00:03]} 22. Be4 {[%emt 0:00:05]} Bg4 {[%emt 0:00:19]} 23. Rd3 {[%emt 0:00:09]} Rad8 {[%emt 0:00:05]} 24. Bf3 {[%emt 0:00:26]} Bxf3 {[%emt 0:00:29]} 25. Rxf3 {[%emt 0:00:03]} Rd7 {[%emt 0:00:11]} 26. Rfe3 {[%emt 0:00:02]} Rde7 {[%emt 0:00:02]} 27. Re4 {[%emt 0:00:03]} g5 {[%emt 0:00:04]} 28. Qe2 {[%emt 0:00:10]} Qd7 {[%emt 0:00:09]} 29. Kg2 {[%emt 0:00:04]} Qf5 {[%emt 0:00:01]} 30. g4 {[%emt 0:00:07]} Qd7 {[%emt 0:00:18]} 31. Rd1 {[%emt 0:00:04]} Qc8 {[%emt 0:00:05]} 32. Rd3 {[%emt 0:00:02]} h6 {[%emt 0:00:10]} 33. Rde3 {[%emt 0:00:03]} Qc7 {[%emt 0:00:02]} 34. h4 {[%emt 0:00:07]} Bf6 {[%emt 0:00:04]} 35. hxg5 {[%emt 0:00:03]} hxg5 {[%emt 0:00:05]} 36. Rf3 {[%emt 0:00:02]} Bg7 {[%emt 0:00:09]} 37. Rf5 {[%emt 0:00:01]} Rf7 {[%emt 0:00:13]} 38. Bxe5 {[%emt 0:00:21]} Bxe5 {[%emt 0:00:06]} 39. Rexe5 {[%emt 0:00:08]} Ref8 {[%emt 0:00:00]} 1-0

[Event "Djerba Festival Blitz 2025"]
[Site "Djerba"]
[Date "2025.02.21"]
[Round "2.12"]
[White "Viers, Emmanuel"]
[Black "Marceil, Jean"]
[Result "1-0"]
[ECO "D00"]
[WhiteElo "2072"]
[BlackElo "1901"]
[PlyCount "49"]
[EventDate "2025.02.15"]
[EventType "swiss"]
[EventCountry "TUN"]
[TimeControl "180+3"]

1. d4 {[%emt 0:00:04]} d5 {[%emt 0:00:05]} 2. Nc3 {[%emt 0:00:03]} Bf5 {[%emt 0:00:04]} 3. Nf3 {[%emt 0:00:03]} Nf6 {[%emt 0:00:03]} 4. Ne5 {[%emt 0:00:02]} e6 {[%emt 0:00:04]} 5. e3 {[%emt 0:00:02]} Bd6 {[%emt 0:00:03]} 6. g4 {[%emt 0:00:02]} Bg6 {[%emt 0:00:03]} 7. h4 {[%emt 0:00:02]} h6 {[%emt 0:00:10]} 8. Nxg6 fxg6 {[%emt 0:00:03]} 9. Bd3 {[%emt 0:00:05]} Nc6 {[%emt 0:00:44]} 10. Bxg6+ {[%emt 0:00:05]} Kd7 {[%emt 0:00:02]} 11. Qe2 {[%emt 0:00:38]} a6 {[%emt 0:00:05]} 12. Bd2 {[%emt 0:00:05]} Ne7 {[%emt 0:00:02]} 13. Bd3 {[%emt 0:00:03]} c6 {[%emt 0:00:04]} 14. e4 {[%emt 0:00:34]} Bb4 {[%emt 0:00:24]} 15. e5 {[%emt 0:00:05]} Ne8 {[%emt 0:00:02]} 16. f4 {[%emt 0:00:24]} g6 {[%emt 0:00:18]} 17. O-O-O {[%emt 0:00:13]} Qa5 {[%emt 0:00:05]} 18. Nb1 {[%emt 0:00:22]} Bxd2+ {[%emt 0:00:07]} 19. Qxd2 {[%emt 0:00:04]} Qxa2 {[%emt 0:00:05]} 20. Qb4 {[%emt 0:00:05]} Rb8 {[%emt 0:00:17]} 21. Nc3 {[%emt 0:00:12]} a5 {[%emt 0:00:03]} 22. Qxe7+ {[%emt 0:00:09]} Kxe7 {[%emt 0:00:04]} 23. Nxa2 {[%emt 0:00:02]} b5 {[%emt 0:00:07]} 24. Bxg6 {[%emt 0:00:02]} Nc7 {[%emt 0:00:02]} 25. f5 {[%emt 0:00:04]} 1-0

[Event "Djerba Festival Blitz 2025"]
[Site "Djerba"]
[Date "2025.02.21"]
[Round "2.13"]
[White "Bensadi, Lotfi"]
[Black "Boudriga, Mohamed Ali"]
[Result "1/2-1/2"]
[ECO "B28"]
[WhiteElo "1971"]
[BlackElo "2323"]
[PlyCount "64"]
[EventDate "2025.02.15"]
[EventType "swiss"]
[EventCountry "TUN"]
[TimeControl "180+3"]

1. e4 {[%emt 0:00:04]} c5 {[%emt 0:00:02]} 2. Nf3 a6 {[%emt 0:03:07]} 3. d4 {[%emt 0:00:06]} cxd4 4. Nxd4 {[%emt 0:00:02]} Nf6 {[%emt 0:00:00]} 5. Nc3 {[%emt 0:00:02]} e5 {[%emt 0:00:00]} 6. Nb3 {[%emt 0:00:09]} Bb4 {[%emt 0:00:00]} 7. Bd3 {[%emt 0:00:04]} d5 {[%emt 0:00:00]} 8. exd5 Nxd5 {[%emt 0:00:00]} 9. Bd2 {[%emt 0:00:12]} Nxc3 {[%emt 0:00:00]} 10. Bxc3 {[%emt 0:00:02]} Bxc3+ {[%emt 0:00:00]} 11. bxc3 {[%emt 0:00:03]} O-O {[%emt 0:00:00]} 12. O-O {[%emt 0:00:18]} Qc7 {[%emt 0:00:00]} 13. c4 {[%emt 0:00:35]} Be6 {[%emt 0:00:00]} 14. Qe2 {[%emt 0:00:03]} Nd7 {[%emt 0:00:00]} 15. Rfe1 {[%emt 0:00:22]} Rfe8 {[%emt 0:00:00]} 16. Nd2 {[%emt 0:00:11]} Rac8 {[%emt 0:00:00]} 17. Rab1 {[%emt 0:00:03]} f5 {[%emt 0:00:00]} 18. f3 {[%emt 0:00:05]} g6 {[%emt 0:00:00]} 19. Rb2 {[%emt 0:00:06]} Bf7 {[%emt 0:00:00]} 20. Reb1 {[%emt 0:00:09]} Nc5 {[%emt 0:00:00]} 21. Qf2 {[%emt 0:00:09]} Rcd8 {[%emt 0:00:00]} 22. Rb6 {[%emt 0:00:10]} Re7 {[%emt 0:00:00]} 23. Bf1 {[%emt 0:00:30]} Red7 {[%emt 0:00:00]} 24. Nb3 {[%emt 0:00:20]} Na4 {[%emt 0:00:00]} 25. Rb4 {[%emt 0:00:05]} Nc3 {[%emt 0:00:00]} 26. Re1 {[%emt 0:00:02]} a5 {[%emt 0:00:06]} 27. Rb6 {[%emt 0:00:02]} a4 {[%emt 0:00:02]} 28. Na5 {[%emt 0:00:02]} Nd1 {[%emt 0:00:15]} 29. Rxb7 {[%emt 0:00:23]} Qxa5 {[%emt 0:00:07]} 30. Qe2 {[%emt 0:00:03]} Rxb7 {[%emt 0:00:07]} 31. g3 {[%emt 0:00:08]} Qc5+ {[%emt 0:00:04]} 32. Kh1 {[%emt 0:00:02]} Nc3 {[%emt 0:00:04]} 1/2-1/2

[Event "Djerba Festival Blitz 2025"]
[Site "Djerba"]
[Date "2025.02.21"]
[Round "2.14"]
[White "Amdouni, Zoubaier"]
[Black "El Kadi, Ismael"]
[Result "1-0"]
[ECO "B86"]
[WhiteElo "2229"]
[BlackElo "1852"]
[PlyCount "42"]
[EventDate "2025.02.15"]
[EventType "swiss"]
[EventCountry "TUN"]
[TimeControl "180+3"]

1. e4 {[%emt 0:00:04]} c5 {[%emt 0:00:03]} 2. Nf3 {[%emt 0:00:02]} d6 {[%emt 0:00:03]} 3. d4 {[%emt 0:00:02]} cxd4 4. Nxd4 {[%emt 0:00:02]} Nf6 {[%emt 0:00:03]} 5. Nc3 {[%emt 0:00:02]} a6 {[%emt 0:00:02]} 6. Bc4 {[%emt 0:00:01]} e6 {[%emt 0:00:03]} 7. Bb3 {[%emt 0:00:02]} Be7 {[%emt 0:00:02]} 8. Be3 {[%emt 0:00:05]} Nbd7 {[%emt 0:00:05]} 9. Bxe6 {[%emt 0:00:05]} O-O {[%emt 0:00:09]} 10. Bb3 {[%emt 0:00:04]} b5 {[%emt 0:00:06]} 11. Nc6 {[%emt 0:00:02]} Qe8 {[%emt 0:00:04]} 12. Qd4 {[%emt 0:00:18]} Nc5 {[%emt 0:00:08]} 13. Bd5 {[%emt 0:00:15]} Nxd5 14. Nxd5 {[%emt 0:00:03]} Bd8 {[%emt 0:00:59]} 15. Nxd8 {[%emt 0:00:04]} Qxd8 {[%emt 0:00:04]} 16. O-O-O {[%emt 0:00:06]} Be6 {[%emt 0:02:00]} 17. Kb1 {[%emt 0:00:05]} b4 {[%emt 0:00:00]} 18. e5 {[%emt 0:02:35]} Bxd5 {[%emt 0:00:00]} 19. Qxd5 {[%emt 0:00:00]} Qa5 {[%emt 0:00:00]} 20. exd6 {[%emt 0:00:00]} Rac8 {[%emt 0:00:00]} 21. d7 {[%emt 0:00:00]} Ra8 {[%emt 0:00:15]} 1-0

[Event "Djerba Festival Blitz 2025"]
[Site "Djerba"]
[Date "2025.02.21"]
[Round "2.16"]
[White "Pichon, Ewen"]
[Black "Tahir, Abderrahmane"]
[Result "1-0"]
[ECO "A01"]
[WhiteElo "2351"]
[BlackElo "1891"]
[PlyCount "61"]
[EventDate "2025.02.15"]
[EventType "swiss"]
[EventCountry "TUN"]
[TimeControl "180+3"]

1. b3 {[%emt 0:00:02]} d6 {[%emt 0:00:05]} 2. Bb2 {[%emt 0:00:04]} Nf6 {[%emt 0:00:01]} 3. g3 {[%emt 0:00:02]} g6 {[%emt 0:00:02]} 4. Bxf6 {[%emt 0:00:03]} exf6 {[%emt 0:00:02]} 5. c4 {[%emt 0:00:02]} Bg7 {[%emt 0:00:01]} 6. Nc3 {[%emt 0:00:02]} c6 {[%emt 0:00:04]} 7. Bg2 {[%emt 0:00:02]} O-O {[%emt 0:00:02]} 8. e3 {[%emt 0:00:02]} f5 {[%emt 0:00:01]} 9. Rc1 {[%emt 0:00:01]} Re8 {[%emt 0:00:02]} 10. Nge2 {[%emt 0:00:02]} Nd7 {[%emt 0:00:02]} 11. d4 {[%emt 0:00:03]} Nf6 {[%emt 0:00:02]} 12. Qc2 {[%emt 0:00:03]} Ne4 {[%emt 0:00:29]} 13. O-O {[%emt 0:00:09]} Bd7 {[%emt 0:00:13]} 14. Nxe4 {[%emt 0:00:09]} fxe4 {[%emt 0:00:02]} 15. Bxe4 {[%emt 0:00:03]} Qe7 {[%emt 0:00:06]} 16. Bg2 {[%emt 0:00:03]} Bf5 {[%emt 0:00:17]} 17. Qd2 {[%emt 0:00:02]} Rad8 {[%emt 0:00:05]} 18. Rfe1 {[%emt 0:00:02]} d5 {[%emt 0:00:03]} 19. cxd5 {[%emt 0:00:03]} cxd5 {[%emt 0:00:02]} 20. Nc3 {[%emt 0:00:04]} Be4 {[%emt 0:00:21]} 21. Nxe4 {[%emt 0:00:03]} dxe4 {[%emt 0:00:01]} 22. Rc4 {[%emt 0:00:02]} f5 {[%emt 0:00:59]} 23. Rec1 {[%emt 0:00:04]} Be5 {[%emt 0:00:02]} 24. Qa5 {[%emt 0:00:25]} Bb8 {[%emt 0:00:04]} 25. Bf1 {[%emt 0:00:12]} b6 {[%emt 0:00:06]} 26. Qb5 {[%emt 0:00:05]} Qf7 {[%emt 0:00:21]} 27. Rc6 {[%emt 0:00:07]} Rd5 {[%emt 0:00:09]} 28. Qxd5 {[%emt 0:00:03]} Qxd5 {[%emt 0:00:02]} 29. Bc4 {[%emt 0:00:01]} Qxc4 {[%emt 0:00:06]} 30. R1xc4 {[%emt 0:00:02]} g5 {[%emt 0:00:09]} 31. Rc8 {[%emt 0:00:02]} 1-0

[Event "Djerba Festival Blitz 2025"]
[Site "Djerba"]
[Date "2025.02.21"]
[Round "2.17"]
[White "Mendili, Jahed"]
[Black "Filali, Razzouki Marouane"]
[Result "1/2-1/2"]
[ECO "B13"]
[WhiteElo "1771"]
[BlackElo "2234"]
[PlyCount "156"]
[EventDate "2025.02.15"]
[EventType "swiss"]
[EventCountry "TUN"]
[TimeControl "180+3"]

1. e4 {[%emt 0:00:05]} c6 {[%emt 0:00:02]} 2. d4 {[%emt 0:00:02]} d5 {[%emt 0:00:02]} 3. exd5 {[%emt 0:00:02]} cxd5 {[%emt 0:00:01]} 4. Bd3 {[%emt 0:00:04]} Nc6 {[%emt 0:00:02]} 5. c3 {[%emt 0:00:01]} g6 {[%emt 0:00:03]} 6. Bf4 {[%emt 0:00:03]} Bf5 {[%emt 0:00:02]} 7. Bxf5 {[%emt 0:00:08]} gxf5 {[%emt 0:00:02]} 8. Nd2 {[%emt 0:00:03]} Nf6 {[%emt 0:00:03]} 9. Ngf3 {[%emt 0:00:02]} Ne4 {[%emt 0:00:03]} 10. Nxe4 {[%emt 0:00:07]} fxe4 {[%emt 0:00:06]} 11. Ne5 {[%emt 0:00:02]} Bg7 {[%emt 0:00:06]} 12. Qh5 {[%emt 0:00:49]} Nxe5 {[%emt 0:00:12]} 13. Bxe5 {[%emt 0:00:03]} Bxe5 {[%emt 0:00:07]} 14. Qxe5 {[%emt 0:00:03]} Rg8 {[%emt 0:00:08]} 15. O-O-O {[%emt 0:00:20]} Qd7 {[%emt 0:00:04]} 16. Rhg1 {[%emt 0:00:09]} O-O-O {[%emt 0:00:05]} 17. Rd2 {[%emt 0:00:21]} Rg6 {[%emt 0:00:07]} 18. Rc2 {[%emt 0:00:08]} Rc6 {[%emt 0:00:06]} 19. Rd1 {[%emt 0:00:05]} h6 {[%emt 0:00:19]} 20. c4 {[%emt 0:00:32]} dxc4 {[%emt 0:00:20]} 21. Qxe4 {[%emt 0:00:04]} e6 {[%emt 0:00:18]} 22. Qe3 {[%emt 0:00:15]} h5 {[%emt 0:00:04]} 23. Qe2 {[%emt 0:00:21]} Qd5 {[%emt 0:00:03]} 24. f3 {[%emt 0:00:09]} Kb8 {[%emt 0:00:03]} 25. Qe4 {[%emt 0:00:02]} b5 {[%emt 0:00:07]} 26. Qf4+ {[%emt 0:00:12]} Rc7 {[%emt 0:00:04]} 27. Qe4 {[%emt 0:00:02]} Rcd7 {[%emt 0:00:05]} 28. Rcd2 {[%emt 0:00:07]} a5 {[%emt 0:00:03]} 29. Kb1 {[%emt 0:00:03]} Kb7 {[%emt 0:00:07]} 30. Qxd5+ {[%emt 0:00:03]} Rxd5 {[%emt 0:00:02]} 31. g3 {[%emt 0:00:02]} b4 {[%emt 0:00:02]} 32. a3 {[%emt 0:00:03]} Kb6 {[%emt 0:00:03]} 33. f4 {[%emt 0:00:05]} Kb5 {[%emt 0:00:02]} 34. Kc2 {[%emt 0:00:02]} f6 {[%emt 0:00:03]} 35. h3 {[%emt 0:00:02]} Rg8 {[%emt 0:00:04]} 36. Rg1 {[%emt 0:00:04]} Ka4 {[%emt 0:00:08]} 37. axb4 {[%emt 0:00:02]} axb4 {[%emt 0:00:03]} 38. g4 {[%emt 0:00:05]} hxg4 {[%emt 0:00:04]} 39. hxg4 {[%emt 0:00:02]} Kb5 {[%emt 0:00:02]} 40. Rdd1 {[%emt 0:00:04]} Rd7 {[%emt 0:00:04]} 41. Rg2 {[%emt 0:00:04]} Rdg7 {[%emt 0:00:03]} 42. Rdg1 {[%emt 0:00:02]} Kc6 {[%emt 0:00:04]} 43. Kd2 {[%emt 0:00:02]} Kd5 {[%emt 0:00:02]} 44. Ke3 {[%emt 0:00:02]} Rh8 {[%emt 0:00:03]} 45. Rg3 {[%emt 0:00:03]} Rh2 {[%emt 0:00:03]} 46. R1g2 {[%emt 0:00:02]} Rh1 {[%emt 0:00:03]} 47. Rg1 {[%emt 0:00:02]} Rh2 {[%emt 0:00:03]} 48. R1g2 {[%emt 0:00:02]} Rxg2 {[%emt 0:00:02]} 49. Rxg2 {[%emt 0:00:02]} Rh7 {[%emt 0:00:08]} 50. g5 {[%emt 0:00:10]} fxg5 {[%emt 0:00:07]} 51. Rxg5+ {[%emt 0:00:03]} Kd6 {[%emt 0:00:04]} 52. Rc5 {[%emt 0:00:03]} Rh3+ {[%emt 0:00:03]} 53. Ke4 {[%emt 0:00:02]} c3 {[%emt 0:00:04]} 54. bxc3 {[%emt 0:00:02]} bxc3 {[%emt 0:00:03]} 55. f5 {[%emt 0:00:03]} exf5+ {[%emt 0:00:13]} 56. Rxf5 {[%emt 0:00:03]} c2 {[%emt 0:00:04]} 57. Rc5 {[%emt 0:00:01]} Rh2 {[%emt 0:00:04]} 58. Kd3 {[%emt 0:00:03]} Rg2 {[%emt 0:00:04]} 59. Rxc2 {[%emt 0:00:05]} Rg3+ {[%emt 0:00:03]} 60. Kc4 {[%emt 0:00:02]} Ra3 {[%emt 0:00:02]} 61. Rb2 {[%emt 0:00:03]} Ra4+ {[%emt 0:00:02]} 62. Kd3 {[%emt 0:00:03]} Kc6 {[%emt 0:00:02]} 63. Ke4 {[%emt 0:00:03]} Ra1 {[%emt 0:00:02]} 64. Re2 {[%emt 0:00:03]} Kd6 {[%emt 0:00:03]} 65. Rb2 {[%emt 0:00:03]} Rh1 {[%emt 0:00:03]} 66. Rb6+ {[%emt 0:00:02]} Kc7 {[%emt 0:00:01]} 67. Rg6 {[%emt 0:00:03]} Rh5 {[%emt 0:00:03]} 68. d5 {[%emt 0:00:04]} Kd7 {[%emt 0:00:01]} 69. Kd4 {[%emt 0:00:02]} Kc7 {[%emt 0:00:02]} 70. Kc5 {[%emt 0:00:02]} Kd8 {[%emt 0:00:07]} 71. Rg7 {[%emt 0:00:02]} Rh6 {[%emt 0:00:03]} 72. d6 {[%emt 0:00:02]} Rh1 {[%emt 0:00:02]} 73. Kc6 {[%emt 0:00:08]} Rc1+ {[%emt 0:00:02]} 74. Kb6 {[%emt 0:00:03]} Rc2 {[%emt 0:00:04]} 75. Rc7 {[%emt 0:00:04]} Rb2+ {[%emt 0:00:03]} 76. Kc6 {[%emt 0:00:02]} Rc2+ {[%emt 0:00:02]} 77. Kb6 {[%emt 0:00:02]} Rb2+ {[%emt 0:00:02]} 78. Kc6 {[%emt 0:00:03]} Rh2 {[%emt 0:00:03]} 1/2-1/2

[Event "Djerba Festival Blitz 2025"]
[Site "Djerba"]
[Date "2025.02.21"]
[Round "2.19"]
[White "Rene, Benoit"]
[Black "Skhiri Youssef"]
[Result "0-1"]
[ECO "A01"]
[WhiteElo "2108"]
[BlackElo "1808"]
[PlyCount "44"]
[EventDate "2025.02.15"]
[EventType "swiss"]
[EventCountry "TUN"]
[TimeControl "180+3"]

1. b3 {[%emt 0:00:04]} d5 {[%emt 0:00:16]} 2. Bb2 {[%emt 0:00:03]} Nc6 {[%emt 0:00:07]} 3. e3 {[%emt 0:00:03]} e5 {[%emt 0:00:04]} 4. Bb5 {[%emt 0:00:02]} Bd6 {[%emt 0:00:03]} 5. f4 {[%emt 0:00:03]} f6 {[%emt 0:00:04]} 6. Nh3 {[%emt 0:00:11]} Bxh3 {[%emt 0:00:28]} 7. Qh5+ {[%emt 0:00:03]} g6 {[%emt 0:00:05]} 8. Qxh3 {[%emt 0:00:04]} exf4 {[%emt 0:00:03]} 9. O-O {[%emt 0:00:12]} Qd7 {[%emt 0:00:20]} 10. Qxd7+ {[%emt 0:00:08]} Kxd7 {[%emt 0:02:03]} 11. exf4 {[%emt 0:00:03]} Re8 {[%emt 0:00:00]} 12. Nc3 {[%emt 0:00:07]} a6 {[%emt 0:00:00]} 13. Bxc6+ {[%emt 0:01:18]} Kxc6 {[%emt 0:00:00]} 14. g3 {[%emt 0:00:09]} d4 {[%emt 0:00:00]} 15. Nd1 {[%emt 0:00:12]} Bc5 {[%emt 0:00:00]} 16. d3 {[%emt 0:00:13]} Re2 {[%emt 0:00:00]} 17. Rf2 {[%emt 0:00:11]} Re1+ {[%emt 0:00:00]} 18. Rf1 {[%emt 0:00:04]} Re2 {[%emt 0:00:00]} 19. Rf2 {[%emt 0:00:18]} Re1+ {[%emt 0:00:00]} 20. Kg2 {[%emt 0:00:03]} Nh6 {[%emt 0:00:00]} 21. Rf1 {[%emt 0:00:30]} Rhe8 {[%emt 0:00:00]} 22. Rxe1 {[%emt 0:00:05]} Rxe1 {[%emt 0:00:00]} 0-1

[Event "Djerba Festival Blitz 2025"]
[Site "Djerba"]
[Date "2025.02.21"]
[Round "2.20"]
[White "Mendil, Yacine"]
[Black "Boulrens, Ala Eddine"]
[Result "0-1"]
[ECO "A07"]
[WhiteElo "1699"]
[BlackElo "2121"]
[PlyCount "64"]
[EventDate "2025.02.15"]
[EventType "swiss"]
[EventCountry "TUN"]
[TimeControl "180+3"]

1. Nf3 {[%emt 0:00:04]} d5 {[%emt 0:00:02]} 2. g3 {[%emt 0:00:03]} Nf6 {[%emt 0:00:03]} 3. Bg2 {[%emt 0:00:02]} c5 {[%emt 0:00:03]} 4. b3 {[%emt 0:00:02]} Nc6 {[%emt 0:00:04]} 5. Bb2 {[%emt 0:00:02]} Bf5 {[%emt 0:00:03]} 6. O-O {[%emt 0:00:04]} e6 {[%emt 0:00:02]} 7. d3 {[%emt 0:00:02]} Be7 {[%emt 0:00:03]} 8. Nbd2 {[%emt 0:00:03]} O-O {[%emt 0:00:07]} 9. e3 {[%emt 0:00:02]} a5 {[%emt 0:00:04]} 10. c4 {[%emt 0:00:04]} a4 {[%emt 0:00:05]} 11. d4 {[%emt 0:00:18]} a3 {[%emt 0:00:08]} 12. Bc3 {[%emt 0:00:03]} Ne4 {[%emt 0:00:10]} 13. Nxe4 {[%emt 0:00:04]} Bxe4 {[%emt 0:00:04]} 14. Qd2 {[%emt 0:00:21]} Qc7 {[%emt 0:00:19]} 15. Rac1 {[%emt 0:00:06]} Rfd8 {[%emt 0:00:05]} 16. dxc5 {[%emt 0:00:17]} dxc4 {[%emt 0:00:08]} 17. Qe2 {[%emt 0:00:04]} Bd3 {[%emt 0:00:03]} 18. Qe1 {[%emt 0:00:07]} cxb3 {[%emt 0:00:11]} 19. axb3 {[%emt 0:00:06]} Bxf1 {[%emt 0:00:06]} 20. Bxf1 {[%emt 0:00:06]} a2 {[%emt 0:00:14]} 21. b4 {[%emt 0:00:10]} Bf6 {[%emt 0:00:02]} 22. Bxf6 {[%emt 0:00:07]} gxf6 {[%emt 0:00:02]} 23. Ra1 {[%emt 0:00:07]} Ne5 {[%emt 0:00:08]} 24. Nh4 {[%emt 0:00:15]} Ng6 {[%emt 0:00:08]} 25. Nf3 {[%emt 0:00:17]} Qd7 {[%emt 0:00:13]} 26. Nd4 {[%emt 0:00:03]} e5 {[%emt 0:00:02]} 27. Nb5 {[%emt 0:00:16]} Qd2 {[%emt 0:00:08]} 28. Qxd2 {[%emt 0:00:23]} Rxd2 {[%emt 0:00:03]} 29. Nd6 {[%emt 0:00:19]} Rb2 {[%emt 0:00:05]} 30. Bd3 {[%emt 0:00:08]} Rxb4 {[%emt 0:00:09]} 31. Bxg6 {[%emt 0:00:07]} hxg6 {[%emt 0:00:03]} 32. Kg2 {[%emt 0:00:08]} Rb1 {[%emt 0:00:04]} 0-1

[Event "Djerba Festival Blitz 2025"]
[Site "Djerba"]
[Date "2025.02.21"]
[Round "2.22"]
[White "Saidi, Bouziane"]
[Black "Kakavand, Ramtin"]
[Result "0-1"]
[ECO "C55"]
[WhiteElo "1710"]
[BlackElo "2106"]
[PlyCount "80"]
[EventDate "2025.02.15"]
[EventType "swiss"]
[EventCountry "TUN"]
[TimeControl "180+3"]

1. e4 {[%emt 0:00:03]} e5 {[%emt 0:00:02]} 2. Nf3 {[%emt 0:00:02]} Nc6 {[%emt 0:00:02]} 3. Nc3 {[%emt 0:00:02]} Nf6 {[%emt 0:00:01]} 4. Bc4 {[%emt 0:00:02]} Nxe4 {[%emt 0:00:03]} 5. Bxf7+ {[%emt 0:00:04]} Kxf7 {[%emt 0:00:02]} 6. Nxe4 {[%emt 0:00:03]} d5 {[%emt 0:00:02]} 7. Nc3 {[%emt 0:00:03]} e4 {[%emt 0:00:07]} 8. Ng1 {[%emt 0:00:08]} Qg5 {[%emt 0:00:04]} 9. g3 {[%emt 0:00:10]} Bg4 {[%emt 0:00:05]} 10. d4 {[%emt 0:00:06]} Qf5 {[%emt 0:00:17]} 11. Nge2 {[%emt 0:00:12]} Bf3 {[%emt 0:00:08]} 12. Rg1 {[%emt 0:00:28]} Bb4 {[%emt 0:00:18]} 13. Be3 {[%emt 0:00:08]} Bxc3+ {[%emt 0:00:05]} 14. bxc3 {[%emt 0:00:03]} Na5 {[%emt 0:00:01]} 15. g4 {[%emt 0:00:35]} Bxg4 {[%emt 0:00:06]} 16. Rxg4 {[%emt 0:00:04]} Qxg4 {[%emt 0:00:03]} 17. Ng3 {[%emt 0:00:18]} Qxd1+ {[%emt 0:00:04]} 18. Rxd1 {[%emt 0:00:04]} g6 {[%emt 0:00:01]} 19. Rb1 {[%emt 0:00:08]} b6 {[%emt 0:00:02]} 20. Ne2 {[%emt 0:00:07]} Nc4 {[%emt 0:00:03]} 21. Nf4 {[%emt 0:00:06]} c6 {[%emt 0:00:01]} 22. Ke2 {[%emt 0:00:06]} g5 {[%emt 0:00:04]} 23. Ng2 {[%emt 0:00:15]} Rhg8 {[%emt 0:00:04]} 24. f4 {[%emt 0:00:05]} exf3+ {[%emt 0:00:05]} 25. Kxf3 {[%emt 0:00:03]} Kg6 {[%emt 0:00:02]} 26. Ke2 {[%emt 0:00:07]} Rae8 {[%emt 0:00:02]} 27. Rf1 {[%emt 0:00:05]} Rgf8 {[%emt 0:00:04]} 28. Rd1 {[%emt 0:00:09]} Re4 {[%emt 0:00:09]} 29. Rd3 {[%emt 0:00:17]} Rg4 {[%emt 0:00:08]} 30. Ne1 {[%emt 0:00:07]} Re4 {[%emt 0:00:09]} 31. Ng2 {[%emt 0:00:05]} h5 {[%emt 0:00:04]} 32. h3 {[%emt 0:00:11]} g4 {[%emt 0:00:04]} 33. hxg4 {[%emt 0:00:02]} hxg4 {[%emt 0:00:03]} 34. Nh4+ {[%emt 0:00:08]} Kh5 {[%emt 0:00:02]} 35. Ng2 {[%emt 0:00:03]} g3 {[%emt 0:00:06]} 36. Kd1 {[%emt 0:00:03]} Nxe3+ {[%emt 0:00:04]} 37. Nxe3 {[%emt 0:00:04]} Rf3 {[%emt 0:00:02]} 38. Ke2 {[%emt 0:00:03]} Rfxe3+ {[%emt 0:00:03]} 39. Rxe3 {[%emt 0:00:02]} Rxe3+ {[%emt 0:00:03]} 40. Kxe3 {[%emt 0:00:03]} Kg4 {[%emt 0:00:02]} 0-1